[Event "Late-Titled-Tuesday-Blitz-March-26-2024"]
[Site "Chess.com"]
[Date "2024.03.26"]
[Round "5"]
[White "BardArtem"]
[Black "subham777"]
[Result "1-0"]
[WhiteElo "2825"]
[BlackElo "2550"]
[TimeControl "180+1"]
[EndTime "14:57:34 PDT"]
[Termination "BardArtem won by resignation"]

1. e4 {[%clk 0:03:00.9]} 1... e6 {[%clk 0:02:58.1]} 2. d4 {[%clk 0:02:59.8]}
2... d5 {[%clk 0:02:55.4]} 3. Nc3 {[%clk 0:02:59.3]} 3... Nf6 {[%clk 0:02:55.1]}
4. Bd3 {[%clk 0:02:55.5]} 4... c5 {[%clk 0:02:35.5]} 5. exd5 {[%clk 0:02:41.7]}
5... Nxd5 {[%clk 0:02:34.1]} 6. Nxd5 {[%clk 0:02:40.9]} 6... Qxd5 {[%clk
0:02:33.7]} 7. Nf3 {[%clk 0:02:33.7]} 7... cxd4 {[%clk 0:02:28.7]} 8. O-O {[%clk
0:02:33.7]} 8... Nc6 {[%clk 0:02:27.7]} 9. Re1 {[%clk 0:02:33.8]} 9... Bc5
{[%clk 0:02:24.5]} 10. a3 {[%clk 0:02:26.4]} 10... O-O {[%clk 0:02:04.5]} 11. b4
{[%clk 0:02:25.9]} 11... Bb6 {[%clk 0:02:04.4]} 12. Bb2 {[%clk 0:02:25.8]} 12...
a6 {[%clk 0:01:27.6]} 13. Be4 {[%clk 0:02:23.9]} 13... Qd6 {[%clk 0:01:17.4]}
14. Bxc6 {[%clk 0:02:17.9]} 14... bxc6 {[%clk 0:01:18.3]} 15. Bxd4 {[%clk
0:02:16.3]} 15... Bxd4 {[%clk 0:01:16.6]} 16. Qxd4 {[%clk 0:02:13.1]} 16... Qe7
{[%clk 0:01:16.5]} 17. Ne5 {[%clk 0:01:56.7]} 17... Bb7 {[%clk 0:01:10.5]} 18.
Rad1 {[%clk 0:01:48.2]} 18... Rfd8 {[%clk 0:01:06.3]} 19. Qb6 {[%clk 0:01:47.8]}
19... Rab8 {[%clk 0:00:44.8]} 20. Nxc6 {[%clk 0:01:26.7]} 20... Bxc6 {[%clk
0:00:42.1]} 21. Qxc6 {[%clk 0:01:19.3]} 21... Rdc8 {[%clk 0:00:32.3]} 22. Qxa6
{[%clk 0:01:04.2]} 22... Rxc2 {[%clk 0:00:31]} 23. h3 {[%clk 0:01:01.2]} 23...
h6 {[%clk 0:00:24.2]} 24. Re2 {[%clk 0:00:43.2]} 24... Rcc8 {[%clk 0:00:18.2]}
25. Red2 {[%clk 0:00:41.1]} 25... Ra8 {[%clk 0:00:17.1]} 26. Qd3 {[%clk
0:00:41.1]} 26... Qg5 {[%clk 0:00:15]} 27. Qb3 {[%clk 0:00:34.1]} 27... Qf6
{[%clk 0:00:13.7]} 28. a4 {[%clk 0:00:32.3]} 28... Rc3 {[%clk 0:00:13.3]} 29.
Qb1 {[%clk 0:00:22.1]} 29... g6 {[%clk 0:00:11.1]} 30. a5 {[%clk 0:00:21.3]}
30... Qg5 {[%clk 0:00:03.9]} 31. Qb2 {[%clk 0:00:20]} 31... Rcc8 {[%clk
0:00:02.8]} 32. Qa1 {[%clk 0:00:16.1]} 32... Rcb8 {[%clk 0:00:03.4]} 33. Qa4
{[%clk 0:00:14.5]} 33... Qb5 {[%clk 0:00:03.3]} 34. Qxb5 {[%clk 0:00:08.8]}
34... Rxb5 {[%clk 0:00:04.2]} 35. Rd8+ {[%clk 0:00:09.6]} 35... Rxd8 {[%clk
0:00:03]} 36. Rxd8+ {[%clk 0:00:10.5]} 36... Kg7 {[%clk 0:00:03.8]} 37. a6
{[%clk 0:00:09.5]} 37... Rb8 {[%clk 0:00:02.8]} 38. Rxb8 {[%clk 0:00:09.3]} 1-0

[Event "Late-Titled-Tuesday-Blitz-March-26-2024"]
[Site "Chess.com"]
[Date "2024.03.26"]
[Round "5"]
[White "only_strong_moves"]
[Black "dolynachess"]
[Result "1-0"]
[WhiteElo "2684"]
[BlackElo "2511"]
[TimeControl "180+1"]
[EndTime "14:57:34 PDT"]
[Termination "only_strong_moves won on time"]

1. Nc3 {[%clk 0:03:00.9]} 1... c5 {[%clk 0:02:55.3]} 2. Nf3 {[%clk 0:02:59.8]}
2... d6 {[%clk 0:02:49.4]} 3. d4 {[%clk 0:02:57.9]} 3... cxd4 {[%clk 0:02:49.1]}
4. Nxd4 {[%clk 0:02:58.8]} 4... Nf6 {[%clk 0:02:49.2]} 5. g3 {[%clk 0:02:56.1]}
5... g6 {[%clk 0:02:47.5]} 6. Bg2 {[%clk 0:02:56.2]} 6... Bg7 {[%clk 0:02:48.2]}
7. O-O {[%clk 0:02:56.8]} 7... O-O {[%clk 0:02:48.7]} 8. h3 {[%clk 0:02:51.3]}
8... Qc7 {[%clk 0:02:41.1]} 9. Be3 {[%clk 0:02:50.8]} 9... Nc6 {[%clk
0:02:40.7]} 10. Rc1 {[%clk 0:02:34.4]} 10... Bd7 {[%clk 0:02:35.6]} 11. Nb3
{[%clk 0:02:26.2]} 11... Rfc8 {[%clk 0:02:30.6]} 12. f4 {[%clk 0:02:25.2]} 12...
Rab8 {[%clk 0:02:23.5]} 13. Nb5 {[%clk 0:02:22.4]} 13... Qd8 {[%clk 0:02:19.5]}
14. Nxa7 {[%clk 0:02:22.6]} 14... Nxa7 {[%clk 0:02:15.7]} 15. Bxa7 {[%clk
0:02:23.5]} 15... Ra8 {[%clk 0:02:16.1]} 16. Bd4 {[%clk 0:02:24]} 16... Rxa2
{[%clk 0:02:15.9]} 17. Bxb7 {[%clk 0:02:23.3]} 17... Bxh3 {[%clk 0:02:11.8]} 18.
Re1 {[%clk 0:02:05.8]} 18... Rb8 {[%clk 0:02:06.4]} 19. Bf3 {[%clk 0:02:06.1]}
19... Be6 {[%clk 0:01:51.7]} 20. Nd2 {[%clk 0:01:59.1]} 20... Ng4 {[%clk
0:01:40.6]} 21. e3 {[%clk 0:01:58.9]} 21... h5 {[%clk 0:01:30.8]} 22. Bxg7
{[%clk 0:01:56.2]} 22... Kxg7 {[%clk 0:01:31.7]} 23. b3 {[%clk 0:01:55]} 23...
Qb6 {[%clk 0:01:26.3]} 24. Nf1 {[%clk 0:01:53.6]} 24... Rc8 {[%clk 0:01:22.4]}
25. Re2 {[%clk 0:01:38]} 25... Rc3 {[%clk 0:00:56.1]} 26. Qe1 {[%clk 0:01:28.8]}
26... Qc5 {[%clk 0:00:51.1]} 27. Bxg4 {[%clk 0:01:21.3]} 27... Bxg4 {[%clk
0:00:49.2]} 28. Rf2 {[%clk 0:01:20]} 28... Rb2 {[%clk 0:00:40.8]} 29. Qd2 {[%clk
0:01:03]} 29... Bh3 {[%clk 0:00:16.3]} 30. Re2 {[%clk 0:00:47.1]} 30... Bxf1
{[%clk 0:00:13.1]} 31. Kxf1 {[%clk 0:00:48]} 31... Rbxb3 {[%clk 0:00:13.3]} 32.
cxb3 {[%clk 0:00:43.7]} 32... Rxc1+ {[%clk 0:00:13.4]} 33. Kf2 {[%clk
0:00:44.4]} 33... Qc3 {[%clk 0:00:09.5]} 34. Qd5 {[%clk 0:00:44.3]} 34... Qa1
{[%clk 0:00:06.2]} 35. Qg2 {[%clk 0:00:22.2]} 35... Rb1 {[%clk 0:00:05]} 36. Qd5
{[%clk 0:00:20.7]} 36... Rf1+ {[%clk 0:00:03.2]} 37. Kg2 {[%clk 0:00:21.1]}
37... Rg1+ {[%clk 0:00:03.5]} 38. Kh2 {[%clk 0:00:21.3]} 38... Qf1 {[%clk
0:00:03.1]} 39. Rd2 {[%clk 0:00:16.5]} 39... e6 {[%clk 0:00:03.2]} 40. Qe4
{[%clk 0:00:14.6]} 1-0

[Event "Late-Titled-Tuesday-Blitz-March-26-2024"]
[Site "Chess.com"]
[Date "2024.03.26"]
[Round "5"]
[White "Hirna2005"]
[Black "Good_Knight_Kiss"]
[Result "1-0"]
[WhiteElo "2307"]
[BlackElo "2486"]
[TimeControl "180+1"]
[EndTime "14:57:38 PDT"]
[Termination "Hirna2005 won on time"]

1. e4 {[%clk 0:03:00.9]} 1... c5 {[%clk 0:02:59]} 2. c3 {[%clk 0:03:00.8]} 2...
d5 {[%clk 0:02:54.5]} 3. exd5 {[%clk 0:03:00.9]} 3... Qxd5 {[%clk 0:02:55.4]} 4.
Nf3 {[%clk 0:03:01.1]} 4... Nc6 {[%clk 0:02:55.4]} 5. Na3 {[%clk 0:03:00.3]}
5... Bg4 {[%clk 0:02:53.9]} 6. Be2 {[%clk 0:02:56.8]} 6... e6 {[%clk 0:02:50.5]}
7. O-O {[%clk 0:02:54.6]} 7... Nf6 {[%clk 0:02:49.8]} 8. d4 {[%clk 0:02:54.5]}
8... cxd4 {[%clk 0:02:47.3]} 9. Nb5 {[%clk 0:02:54.6]} 9... Rc8 {[%clk
0:02:41.7]} 10. Nfxd4 {[%clk 0:02:43.1]} 10... Bxe2 {[%clk 0:02:38.2]} 11. Qxe2
{[%clk 0:02:42.1]} 11... Nxd4 {[%clk 0:02:34.9]} 12. Nxd4 {[%clk 0:02:38.1]}
12... Be7 {[%clk 0:02:16]} 13. h3 {[%clk 0:02:37.6]} 13... O-O {[%clk
0:02:15.1]} 14. Be3 {[%clk 0:02:36.6]} 14... a6 {[%clk 0:02:10]} 15. Rfd1 {[%clk
0:02:36]} 15... Rfd8 {[%clk 0:02:00.5]} 16. Nf3 {[%clk 0:02:16.4]} 16... Qa5
{[%clk 0:01:50.3]} 17. Bd4 {[%clk 0:02:05]} 17... Qf5 {[%clk 0:01:30.5]} 18. Bb6
{[%clk 0:02:00.3]} 18... Rxd1+ {[%clk 0:01:18.3]} 19. Rxd1 {[%clk 0:01:59.3]}
19... Nd5 {[%clk 0:01:10.7]} 20. Bd4 {[%clk 0:01:50.3]} 20... Nf4 {[%clk
0:01:08.7]} 21. Qe5 {[%clk 0:01:45.7]} 21... Qxe5 {[%clk 0:01:00.9]} 22. Bxe5
{[%clk 0:01:45.9]} 22... Nd5 {[%clk 0:00:55.3]} 23. Nd2 {[%clk 0:01:36.1]} 23...
f6 {[%clk 0:00:49.1]} 24. Bg3 {[%clk 0:01:32]} 24... Kf7 {[%clk 0:00:39.9]} 25.
Nb3 {[%clk 0:01:31.7]} 25... b5 {[%clk 0:00:34.7]} 26. Kf1 {[%clk 0:01:24.7]}
26... g5 {[%clk 0:00:30.3]} 27. a3 {[%clk 0:01:14.4]} 27... h5 {[%clk 0:00:29]}
28. Re1 {[%clk 0:01:09.3]} 28... e5 {[%clk 0:00:23.5]} 29. h4 {[%clk 0:01:05]}
29... g4 {[%clk 0:00:21.5]} 30. Rd1 {[%clk 0:00:54.1]} 30... Ke6 {[%clk
0:00:21.4]} 31. Nd2 {[%clk 0:00:49.3]} 31... f5 {[%clk 0:00:17.6]} 32. Re1
{[%clk 0:00:39.8]} 32... Bd6 {[%clk 0:00:16.5]} 33. f3 {[%clk 0:00:32.5]} 33...
gxf3 {[%clk 0:00:13.1]} 34. Nxf3 {[%clk 0:00:31.5]} 34... f4 {[%clk 0:00:11.7]}
35. Bf2 {[%clk 0:00:29]} 35... Kf5 {[%clk 0:00:11.2]} 36. Rd1 {[%clk 0:00:27.3]}
36... Bxa3 {[%clk 0:00:02.6]} 37. Rxd5 {[%clk 0:00:22.8]} 37... Bxb2 {[%clk
0:00:02.6]} 38. Rxe5+ {[%clk 0:00:22.9]} 38... Kf6 {[%clk 0:00:02.5]} 39. Bd4
{[%clk 0:00:22.9]} 39... Kf7 {[%clk 0:00:01.1]} 40. Rf5+ {[%clk 0:00:20.2]}
40... Ke6 {[%clk 0:00:01.5]} 41. Rxh5 {[%clk 0:00:19.1]} 1-0

[Event "Late-Titled-Tuesday-Blitz-March-26-2024"]
[Site "Chess.com"]
[Date "2024.03.26"]
[Round "5"]
[White "Irishchessman16"]
[Black "David_ATM"]
[Result "1-0"]
[WhiteElo "2560"]
[BlackElo "2380"]
[TimeControl "180+1"]
[EndTime "14:57:39 PDT"]
[Termination "Irishchessman16 won by resignation"]

1. e4 {[%clk 0:02:59.4]} 1... e5 {[%clk 0:02:59.9]} 2. Nf3 {[%clk 0:02:58.8]}
2... Nc6 {[%clk 0:03:00.6]} 3. Nc3 {[%clk 0:02:57.9]} 3... Nf6 {[%clk
0:03:00.3]} 4. d4 {[%clk 0:02:56.6]} 4... d6 {[%clk 0:03:00]} 5. Bb5 {[%clk
0:02:48.2]} 5... exd4 {[%clk 0:02:58.3]} 6. Nxd4 {[%clk 0:02:47.1]} 6... Bd7
{[%clk 0:02:58.9]} 7. O-O {[%clk 0:02:37.7]} 7... Be7 {[%clk 0:02:50.2]} 8. Nf5
{[%clk 0:02:29.1]} 8... Bxf5 {[%clk 0:02:42.1]} 9. exf5 {[%clk 0:02:30]} 9...
O-O {[%clk 0:02:42.3]} 10. Be3 {[%clk 0:02:19.7]} 10... a6 {[%clk 0:02:42.5]}
11. Bxc6 {[%clk 0:02:16]} 11... bxc6 {[%clk 0:02:43.4]} 12. Qf3 {[%clk
0:02:15.2]} 12... d5 {[%clk 0:02:33.3]} 13. Na4 {[%clk 0:02:05.2]} 13... Ne4
{[%clk 0:02:24.7]} 14. c4 {[%clk 0:02:02.7]} 14... Qb8 {[%clk 0:01:43.3]} 15.
Rfd1 {[%clk 0:01:31.8]} 15... Qb7 {[%clk 0:01:43.1]} 16. Rac1 {[%clk 0:01:27.1]}
16... Rad8 {[%clk 0:01:31.7]} 17. b3 {[%clk 0:01:24.9]} 17... Rfe8 {[%clk
0:01:31.5]} 18. Bf4 {[%clk 0:01:15.9]} 18... Bf6 {[%clk 0:00:44.5]} 19. cxd5
{[%clk 0:01:12.9]} 19... cxd5 {[%clk 0:00:31.5]} 20. Rxc7 {[%clk 0:01:08.7]}
20... Qb4 {[%clk 0:00:32.1]} 21. h3 {[%clk 0:01:02.3]} 21... d4 {[%clk
0:00:17.8]} 22. Rc4 {[%clk 0:00:52.4]} 22... Qe7 {[%clk 0:00:10.5]} 23. Nb6
{[%clk 0:00:46.9]} 23... Qb7 {[%clk 0:00:07.8]} 24. Bc7 {[%clk 0:00:40]} 24...
Rc8 {[%clk 0:00:04.7]} 25. Nxc8 {[%clk 0:00:39.3]} 25... Rxc8 {[%clk 0:00:05.2]}
26. Rdc1 {[%clk 0:00:26.2]} 26... Re8 {[%clk 0:00:05.3]} 27. Bf4 {[%clk
0:00:24.6]} 27... h6 {[%clk 0:00:05.8]} 28. Rc7 {[%clk 0:00:22.6]} 28... Qb4
{[%clk 0:00:05.7]} 29. Qd3 {[%clk 0:00:22.5]} 29... Nc3 {[%clk 0:00:04.4]} 30.
Bd2 {[%clk 0:00:18.2]} 30... Qa5 {[%clk 0:00:03.8]} 31. Rc4 {[%clk 0:00:15.8]}
31... Qe5 {[%clk 0:00:03.5]} 32. Bxc3 {[%clk 0:00:15.5]} 32... dxc3 {[%clk
0:00:04.4]} 33. R4xc3 {[%clk 0:00:14.7]} 33... Qf4 {[%clk 0:00:04.8]} 34. R3c2
{[%clk 0:00:14.2]} 34... Be5 {[%clk 0:00:02.2]} 35. g3 {[%clk 0:00:14.3]} 35...
Qg5 {[%clk 0:00:02.7]} 36. h4 {[%clk 0:00:13.8]} 36... Qf6 {[%clk 0:00:02.7]}
37. Kg2 {[%clk 0:00:13.8]} 37... Qe7 {[%clk 0:00:03]} 38. Re1 {[%clk 0:00:13.9]}
38... Qf8 {[%clk 0:00:01.2]} 39. Rce2 {[%clk 0:00:13]} 39... Bf6 {[%clk
0:00:02.1]} 40. Rxe8 {[%clk 0:00:12.5]} 40... Qxe8 {[%clk 0:00:03]} 41. Rxe8+
{[%clk 0:00:12.1]} 41... Kh7 {[%clk 0:00:03.9]} 42. Qxa6 {[%clk 0:00:11.9]} 1-0

[Event "Late-Titled-Tuesday-Blitz-March-26-2024"]
[Site "Chess.com"]
[Date "2024.03.26"]
[Round "5"]
[White "Zkid"]
[Black "NikoTheodorou"]
[Result "1-0"]
[WhiteElo "2923"]
[BlackElo "3100"]
[TimeControl "180+1"]
[EndTime "14:57:40 PDT"]
[Termination "Zkid won on time"]

1. e4 {[%clk 0:03:00.9]} 1... e5 {[%clk 0:02:59.5]} 2. Nf3 {[%clk 0:03:00.9]}
2... Nc6 {[%clk 0:03:00.3]} 3. Bb5 {[%clk 0:03:01.1]} 3... a6 {[%clk 0:03:00.8]}
4. Ba4 {[%clk 0:03:01.5]} 4... f5 {[%clk 0:03:01.4]} 5. d4 {[%clk 0:02:53.5]}
5... exd4 {[%clk 0:03:02.3]} 6. Nxd4 {[%clk 0:02:47.6]} 6... Nxd4 {[%clk
0:02:34.8]} 7. Qxd4 {[%clk 0:02:48.5]} 7... c5 {[%clk 0:02:34.2]} 8. Qe5+ {[%clk
0:02:43.9]} 8... Qe7 {[%clk 0:02:34.4]} 9. Qxe7+ {[%clk 0:02:30.4]} 9... Bxe7
{[%clk 0:02:35.3]} 10. c4 {[%clk 0:02:28.3]} 10... fxe4 {[%clk 0:02:33.4]} 11.
Nc3 {[%clk 0:02:27.8]} 11... Nf6 {[%clk 0:02:34]} 12. O-O {[%clk 0:02:24.5]}
12... O-O {[%clk 0:02:15.2]} 13. Bg5 {[%clk 0:02:15.2]} 13... h6 {[%clk
0:02:09.3]} 14. Bh4 {[%clk 0:02:10.7]} 14... g5 {[%clk 0:01:47.8]} 15. Bg3
{[%clk 0:02:09.3]} 15... d6 {[%clk 0:01:48.5]} 16. Rfe1 {[%clk 0:01:53.1]} 16...
Bf5 {[%clk 0:01:38.2]} 17. Rad1 {[%clk 0:01:51.3]} 17... Rad8 {[%clk 0:01:20.8]}
18. Bc2 {[%clk 0:01:50.8]} 18... Rfe8 {[%clk 0:01:13.1]} 19. Nxe4 {[%clk
0:01:46.7]} 19... Nxe4 {[%clk 0:01:14]} 20. Bxe4 {[%clk 0:01:46.9]} 20... Bxe4
{[%clk 0:01:14.9]} 21. Rxe4 {[%clk 0:01:47.2]} 21... Bf6 {[%clk 0:01:15.8]} 22.
Rxe8+ {[%clk 0:01:44.3]} 22... Rxe8 {[%clk 0:01:16.7]} 23. Kf1 {[%clk
0:01:34.7]} 23... Bxb2 {[%clk 0:00:55.4]} 24. Rxd6 {[%clk 0:01:33.3]} 24... b5
{[%clk 0:00:36.4]} 25. cxb5 {[%clk 0:01:11.1]} 25... axb5 {[%clk 0:00:37.3]} 26.
Rxh6 {[%clk 0:01:11.4]} 26... Rc8 {[%clk 0:00:28]} 27. Rg6+ {[%clk 0:01:08.4]}
27... Kf7 {[%clk 0:00:27.8]} 28. Rxg5 {[%clk 0:01:08.9]} 28... b4 {[%clk
0:00:25.3]} 29. Bd6 {[%clk 0:00:59.9]} 29... c4 {[%clk 0:00:25.5]} 30. Bxb4
{[%clk 0:00:57.8]} 30... c3 {[%clk 0:00:25.9]} 31. Rc5 {[%clk 0:00:51.1]} 31...
Rxc5 {[%clk 0:00:08]} 32. Bxc5 {[%clk 0:00:52]} 32... c2 {[%clk 0:00:07.8]} 33.
Be3 {[%clk 0:00:52.2]} 33... Ke6 {[%clk 0:00:05.7]} 34. Ke2 {[%clk 0:00:51.8]}
34... Kd5 {[%clk 0:00:04.5]} 35. Kd3 {[%clk 0:00:50.4]} 35... c1=Q {[%clk
0:00:05]} 36. Bxc1 {[%clk 0:00:49.8]} 36... Bxc1 {[%clk 0:00:05.9]} 37. h4
{[%clk 0:00:50.1]} 37... Ba3 {[%clk 0:00:05.7]} 38. Ke3 {[%clk 0:00:37.3]} 38...
Ke5 {[%clk 0:00:05.8]} 39. f4+ {[%clk 0:00:35]} 39... Kf6 {[%clk 0:00:05]} 40.
g4 {[%clk 0:00:34.6]} 40... Kg6 {[%clk 0:00:05.1]} 41. Ke4 {[%clk 0:00:33.8]}
41... Kf6 {[%clk 0:00:05.2]} 42. h5 {[%clk 0:00:34.2]} 42... Ke6 {[%clk
0:00:04.9]} 43. g5 {[%clk 0:00:34.1]} 43... Bb4 {[%clk 0:00:02.7]} 44. a4 {[%clk
0:00:33.7]} 44... Ba5 {[%clk 0:00:03.1]} 45. f5+ {[%clk 0:00:32.7]} 45... Kf7
{[%clk 0:00:03.8]} 46. h6 {[%clk 0:00:31.2]} 46... Kg8 {[%clk 0:00:02.8]} 47. f6
{[%clk 0:00:29.6]} 47... Kh7 {[%clk 0:00:02.1]} 48. f7 {[%clk 0:00:27]} 48...
Bb4 {[%clk 0:00:01.9]} 49. Kf5 {[%clk 0:00:27.6]} 49... Kh8 {[%clk 0:00:01.3]}
50. a5 {[%clk 0:00:27.6]} 1-0

[Event "Late-Titled-Tuesday-Blitz-March-26-2024"]
[Site "Chess.com"]
[Date "2024.03.26"]
[Round "5"]
[White "prime-morty"]
[Black "Boninknights"]
[Result "0-1"]
[WhiteElo "2554"]
[BlackElo "2397"]
[TimeControl "180+1"]
[EndTime "14:57:45 PDT"]
[Termination "Boninknights won on time"]

1. c4 {[%clk 0:02:59.3]} 1... Nf6 {[%clk 0:02:58.2]} 2. Nc3 {[%clk 0:02:59.3]}
2... g6 {[%clk 0:02:55.6]} 3. e4 {[%clk 0:02:59.2]} 3... d6 {[%clk 0:02:55.5]}
4. g3 {[%clk 0:02:59.4]} 4... c5 {[%clk 0:02:53.6]} 5. Bg2 {[%clk 0:02:58.6]}
5... Nc6 {[%clk 0:02:53]} 6. a3 {[%clk 0:02:59.2]} 6... Bg7 {[%clk 0:02:51.8]}
7. Rb1 {[%clk 0:02:57.3]} 7... a5 {[%clk 0:02:48.3]} 8. Nge2 {[%clk 0:02:55.6]}
8... O-O {[%clk 0:02:46.5]} 9. d3 {[%clk 0:02:53.5]} 9... Ne8 {[%clk 0:02:45.2]}
10. O-O {[%clk 0:02:50.2]} 10... Nc7 {[%clk 0:02:44.2]} 11. f4 {[%clk
0:02:50.7]} 11... f5 {[%clk 0:02:39.4]} 12. Be3 {[%clk 0:02:27.9]} 12... Rb8
{[%clk 0:02:28.1]} 13. Nd5 {[%clk 0:02:23.9]} 13... b5 {[%clk 0:02:20]} 14. exf5
{[%clk 0:01:57.8]} 14... gxf5 {[%clk 0:02:08.2]} 15. d4 {[%clk 0:01:54.9]} 15...
bxc4 {[%clk 0:01:51.8]} 16. dxc5 {[%clk 0:01:54.4]} 16... Ne6 {[%clk 0:01:33.2]}
17. cxd6 {[%clk 0:01:45.9]} 17... Qxd6 {[%clk 0:01:29.2]} 18. Qc2 {[%clk
0:01:40.4]} 18... Ba6 {[%clk 0:01:23.2]} 19. Rfd1 {[%clk 0:01:38.8]} 19... Nc5
{[%clk 0:01:18]} 20. Nf6+ {[%clk 0:01:07.4]} 20... Qxf6 {[%clk 0:01:16.2]} 21.
Bxc5 {[%clk 0:01:07.7]} 21... Rfd8 {[%clk 0:01:09.3]} 22. Rxd8+ {[%clk
0:01:03.9]} 22... Rxd8 {[%clk 0:01:07.3]} 23. Rd1 {[%clk 0:01:04]} 23... Qxb2
{[%clk 0:01:00.6]} 24. Rxd8+ {[%clk 0:00:53.1]} 24... Nxd8 {[%clk 0:00:58.8]}
25. Qxb2 {[%clk 0:00:34.6]} 25... Bxb2 {[%clk 0:00:56.8]} 26. Bxe7 {[%clk
0:00:35.3]} 26... Nf7 {[%clk 0:00:45.5]} 27. Bc5 {[%clk 0:00:29.9]} 27... c3
{[%clk 0:00:43.8]} 28. Nd4 {[%clk 0:00:30.2]} 28... Bd3 {[%clk 0:00:40.1]} 29.
Nb3 {[%clk 0:00:08.6]} 29... c2 {[%clk 0:00:36]} 30. Be3 {[%clk 0:00:08.9]}
30... a4 {[%clk 0:00:31.1]} 31. Nc1 {[%clk 0:00:07.4]} 31... Be4 {[%clk
0:00:26]} 32. Bf1 {[%clk 0:00:04.9]} 32... Bxa3 {[%clk 0:00:23.9]} 33. Bb5
{[%clk 0:00:05.2]} 33... Bb4 {[%clk 0:00:14.8]} 34. Bxa4 {[%clk 0:00:05.4]}
34... Nd6 {[%clk 0:00:14.4]} 35. Bb3+ {[%clk 0:00:05.6]} 35... Kg7 {[%clk
0:00:13.1]} 36. Kf2 {[%clk 0:00:06.3]} 36... Kg6 {[%clk 0:00:12.5]} 37. Ke2
{[%clk 0:00:06.7]} 37... Nb5 {[%clk 0:00:11.1]} 38. Nd3 {[%clk 0:00:06.5]} 38...
Nc3+ {[%clk 0:00:09.7]} 39. Kd2 {[%clk 0:00:04.2]} 39... Nd5+ {[%clk 0:00:08.7]}
40. Ke2 {[%clk 0:00:01.1]} 40... Nxe3 {[%clk 0:00:08.2]} 0-1

[Event "Late-Titled-Tuesday-Blitz-March-26-2024"]
[Site "Chess.com"]
[Date "2024.03.26"]
[Round "5"]
[White "martinmena"]
[Black "IsaqueGoncalvesSanto"]
[Result "0-1"]
[WhiteElo "2237"]
[BlackElo "1892"]
[TimeControl "180+1"]
[EndTime "14:57:47 PDT"]
[Termination "IsaqueGoncalvesSanto won on time"]

1. c4 {[%clk 0:02:59]} 1... e6 {[%clk 0:02:59]} 2. g3 {[%clk 0:02:58.9]} 2... d5
{[%clk 0:02:58.7]} 3. Bg2 {[%clk 0:02:59]} 3... Nf6 {[%clk 0:02:55.2]} 4. Nf3
{[%clk 0:02:58.5]} 4... dxc4 {[%clk 0:02:51.9]} 5. Qa4+ {[%clk 0:02:56.9]} 5...
Nbd7 {[%clk 0:02:48.3]} 6. O-O {[%clk 0:02:50.9]} 6... Be7 {[%clk 0:02:45]} 7.
Qxc4 {[%clk 0:02:49.8]} 7... O-O {[%clk 0:02:44.3]} 8. b3 {[%clk 0:02:33.5]}
8... Nb6 {[%clk 0:02:39.4]} 9. Qc2 {[%clk 0:02:30.5]} 9... Nbd5 {[%clk
0:02:27.2]} 10. a3 {[%clk 0:02:20.9]} 10... Bd7 {[%clk 0:02:17.5]} 11. Ne5
{[%clk 0:02:13.3]} 11... Bb5 {[%clk 0:02:11.2]} 12. d3 {[%clk 0:02:07.8]} 12...
Rc8 {[%clk 0:02:05.5]} 13. Nc3 {[%clk 0:01:55.9]} 13... Nxc3 {[%clk 0:02:03.6]}
14. Qxc3 {[%clk 0:01:56.8]} 14... Nd5 {[%clk 0:02:03.7]} 15. Qc2 {[%clk
0:01:50.4]} 15... Bf6 {[%clk 0:01:59.1]} 16. Bb2 {[%clk 0:01:50.3]} 16... c5
{[%clk 0:01:35]} 17. Nc4 {[%clk 0:01:14.2]} 17... Bc6 {[%clk 0:01:26.2]} 18.
Bxf6 {[%clk 0:01:07]} 18... Qxf6 {[%clk 0:01:19.7]} 19. Na5 {[%clk 0:01:01.6]}
19... b6 {[%clk 0:00:46.6]} 20. Nxc6 {[%clk 0:00:57.1]} 20... Rxc6 {[%clk
0:00:46.4]} 21. e4 {[%clk 0:00:54.5]} 21... Qc3 {[%clk 0:00:40.6]} 22. Rfc1
{[%clk 0:00:29.2]} 22... Qxc2 {[%clk 0:00:37.2]} 23. Rxc2 {[%clk 0:00:29.7]}
23... Ne7 {[%clk 0:00:33.4]} 24. b4 {[%clk 0:00:28.2]} 24... cxb4 {[%clk
0:00:30.6]} 25. Rxc6 {[%clk 0:00:23.2]} 25... Nxc6 {[%clk 0:00:30.1]} 26. Rc1
{[%clk 0:00:22.8]} 26... b3 {[%clk 0:00:18.7]} 27. Bf3 {[%clk 0:00:05.9]} 27...
Na5 {[%clk 0:00:17.7]} 28. Rb1 {[%clk 0:00:02.5]} 28... Rc8 {[%clk 0:00:16.4]}
29. Bd1 {[%clk 0:00:01.9]} 29... Rc3 {[%clk 0:00:15.9]} 30. d4 {[%clk
0:00:01.9]} 30... Kf8 {[%clk 0:00:15.9]} 31. Kf1 {[%clk 0:00:01]} 31... Ke8
{[%clk 0:00:16.1]} 32. Ke1 {[%clk 0:00:01.4]} 32... Kd7 {[%clk 0:00:13.5]} 33.
Kd2 {[%clk 0:00:01.1]} 33... Rc4 {[%clk 0:00:11.7]} 34. Kd3 {[%clk 0:00:01.4]}
34... Ra4 {[%clk 0:00:09.7]} 35. Kc3 {[%clk 0:00:01]} 35... Rc4+ {[%clk
0:00:07.9]} 0-1